bitfinex-derivatives/quotes_SOLF0:USTF0_20240815
["timestamp","ask_amount","ask_price","bid_price","bid_amount"]
[1723690133433,0.04448788,145.03,145.01,3.4925713]
[1723690137135,3.4472,145.02,145.01,0.0452713]
[1723690137337,10.59,145.02,144.94,10.59]
[1723690137535,4.8,145.01,144.91,10.59]
[1723690137731,10.59,144.97,144.91,10.59]
[1723690138036,10.59,144.95,144.9,10.59]
[1723690138431,3.449,144.95,144.91,3.4497]
[1723690138632,3.449,144.95,144.9,10.59]
[1723690138837,0.04415559,144.94,144.91,0.05174312]
[1723690139839,0.04415559,144.94,144.92,3.4496]
[1723690140632,0.04415559,144.94,144.91,0.05174312]
[1723690141133,26.51,144.93,144.91,0.05174312]
[1723690141338,1.2588,144.92,144.91,0.05174312]
[1723690141841,4.84415559,144.94,144.91,0.05174312]
[1723690142137,0.04415559,144.94,144.91,0.05174312]
[1723690142736,0.04415559,144.94,144.91,3.50134312]
[1723690143139,0.04415559,144.94,144.91,0.05174312]
[1723690143330,3.4495,144.93,144.91,0.05174312]
[1723690143534,0.04415559,144.94,144.91,0.05174312]
[1723690144039,3.49345559,144.94,144.91,0.05174312]
[1723690145450,0.04415559,144.94,144.91,3.50154312]
[1723690147850,0.04415559,144.94,144.92,3.4496]
[1723690148240,0.04415559,144.94,144.91,0.05174312]
[1723690148241,3.49335559,144.94,144.91,0.05174312]
[1723690148441,0.04415559,144.94,144.91,3.50134312]
[1723690148742,0.04415559,144.94,144.91,0.05174312]
[1723690148944,0.04415559,144.94,144.92,3.4495]
[1723690151454,4.8,144.98,144.93,26.51]
[1723690151651,4.8,145.05,144.97,26.51]
[1723690152260,26.51,145.04,144.96,26.51]
[1723690152556,3.4478,145.0,144.94,26.51]
[1723690152760,3.4478,145.0,144.99,0.04699505]
[1723690153057,3.4966319,145.01,144.97,3.4483]
[1723690153259,0.0490319,145.01,144.97,3.4483]
[1723690153459,26.51,145.04,144.97,3.4483]
[1723690153660,26.51,145.02,144.96,0.04535561]
[1723690153852,0.04965116,145.0,144.93,3.41186988]
[1723690154053,0.04965116,145.0,144.96,26.51]
[1723690154256,0.04965116,145.0,144.99,3.4479]
[1723690161760,0.04965116,145.0,144.99,29.9579]
[1723690162156,10.333,145.15,144.99,53.02]
[1723690162356,3.4456,145.09,145.04,26.51]
[1723690163158,2.5648,145.12,145.07,26.51]
[1723690163357,0.04507179,145.08,145.07,26.51]
[1723690163561,1.278,145.12,145.07,26.51]
[1723690163755,3.4451,145.11,145.07,29.9559]
[1723690163956,0.04836283,145.09,145.07,29.9559]
[1723690164359,0.04836283,145.09,145.08,3.4458]
[1723690164664,0.04836283,145.09,145.07,26.51]
[1723690165059,0.04836283,145.09,145.06,4.82907873]
[1723690165260,0.04836283,145.09,145.07,26.51]
[1723690165453,0.04836283,145.09,145.07,29.9558]
[1723690165962,0.04836283,145.09,145.07,26.51]
[1723690166365,0.04836283,145.09,145.08,3.4458]
[1723690166661,0.04836283,145.09,145.06,0.04907873]
[1723690167459,3.446,145.07,145.06,0.04907873]
[1723690167662,29.1634,145.08,144.99,26.51]
[1723690167963,26.51,145.06,144.97,26.51]
[1723690168156,26.51,145.06,144.98,3.448]
[1723690168361,26.51,145.06,144.95,26.51]
[1723690168565,26.51,145.04,144.95,26.51]
[1723690168955,31.29,145.05,144.97,3.4484]
[1723690169164,0.0437159,145.01,144.98,0.04580159]
[1723690169566,0.0437159,145.01,144.99,3.4478]
[1723690170364,0.0437159,145.01,144.98,3.49390159]
[1723690172165,0.0437159,145.01,144.99,3.4479]
[1723690172467,0.0437159,145.01,144.98,0.04580159]
[1723690173265,0.0437159,145.01,144.98,3.49390159]
[1723690175067,0.0437159,145.01,144.98,0.04580159]
[1723690176071,3.4478,145.0,144.98,0.04580159]
[1723690185178,3.4479,144.99,144.98,0.04580159]
[1723690185674,30.01761636,144.99,144.91,26.51]
[1723690185872,3.4487,144.96,144.93,3.4493]
[1723690186777,3.49514512,144.96,144.93,3.49968672]
[1723690186977,3.49514512,144.96,144.93,0.05038672]
[1723690187776,0.04644512,144.96,144.93,0.05038672]
[1723690188880,3.4491,144.94,144.93,0.05038672]
[1723690191982,3.4499,144.91,144.88,3.4504]
[1723690192483,3.4499,144.91,144.87,3.4506]
[1723690192881,3.4501,144.9,144.87,3.4506]
[1723690193081,1.3021,144.94,144.87,3.4506]
[1723690193383,0.04417813,144.9,144.88,3.4505]
[1723690193577,0.04417813,144.9,144.87,0.04501672]
[1723690194676,26.51,144.88,144.73,51.55913899]
[1723690194877,26.51,144.88,144.78,26.51]
[1723690194878,1.2268,144.87,144.78,26.51]
[1723690195086,3.4515,144.84,144.8,3.4523]
[1723690195383,4.78,144.88,144.82,26.51]
[1723690195586,3.4502,144.9,144.86,3.4509]
[1723690195783,6.0205,144.91,144.85,26.51]
[1723690196385,0.05225522,144.86,144.84,0.05062545]
[1723690196785,0.05225522,144.86,144.85,26.51]
[1723690196987,3.4501,144.9,144.85,29.9611]
[1723690197185,9.53294709,144.91,144.84,0.05062545]
[1723690197391,0.04567702,144.87,144.84,0.05062545]
[1723690197991,0.04567702,144.87,144.85,3.4513]
[1723690198182,0.04567702,144.87,144.84,0.05062545]
[1723690198381,0.04567702,144.87,144.86,26.51]
[1723690198792,0.04567702,144.87,144.84,0.05062545]
[1723690199295,0.04567702,144.87,144.84,3.50202545]
[1723690199980,0.04567702,144.87,144.85,10.6]
[1723690200985,10.6,144.86,144.84,0.05062545]
[1723690201181,10.6,144.85,144.78,10.6]
[1723690201383,3.4524,144.81,144.78,10.6]
[1723690201686,3.4524,144.81,144.76,14.0533]
[1723690202090,1.3378,144.84,144.79,10.6]
[1723690202287,4.78,144.83,144.78,10.6]
[1723690202484,6.1178,144.84,144.79,10.6]
[1723690202696,0.04352463,144.8,144.79,10.6]
[1723690203093,0.04352463,144.8,144.79,14.0525]
[1723690203394,1.3378,144.84,144.79,14.0525]
[1723690203699,3.4513,144.85,144.82,10.6]
[1723690203889,1.2469,144.86,144.8,26.51]
[1723690204085,0.04888615,144.83,144.8,26.51]
[1723690204490,0.04888615,144.83,144.82,0.0514929]
[1723690206392,0.04888615,144.83,144.82,3.5034929]
[1723690207397,2.5096,144.9,144.84,3.4513]
[1723690207591,2.5096,144.9,144.8,26.51]
[1723690207894,1.2306,144.9,144.85,26.51]
[1723690208096,4.6809,144.9,144.86,3.451]
[1723690208292,1.2306,144.9,144.85,26.51]
[1723690208690,0.04596915,144.89,144.87,0.05141929]
[1723690209096,0.04596915,144.89,144.87,26.56141929]
[1723690209395,0.04596915,144.89,144.88,29.9605]
[1723690210593,0.04596915,144.89,144.87,30.01211929]
[1723690210789,0.04596915,144.89,144.87,0.05141929]
[1723690212101,3.4505,144.88,144.87,0.05141929]
[1723690212901,0.04596915,144.89,144.87,0.05141929]
[1723690213292,0.04596915,144.89,144.88,3.4505]
[1723690213699,2.4961,144.94,144.87,26.56141929]
[1723690213903,2.4961,144.94,144.91,3.4498]
[1723690213904,1.2354,144.94,144.91,3.4498]
[1723690214394,4.78,144.97,144.9,26.51]
[1723690214596,1.2504,145.0,144.93,26.51]
[1723690214797,1.2504,145.0,144.95,26.51]
[1723690215005,3.4474,145.02,144.98,3.4482]
[1723690215208,1.2504,145.04,144.95,26.56301373]
[1723690215400,0.0460327,144.99,144.95,26.51]
[1723690215899,0.0460327,144.99,144.98,0.04773005]
[1723690216295,0.0460327,144.99,144.97,26.51]
[1723690216504,0.0460327,144.99,144.95,26.51]
[1723690216700,0.0460327,144.99,144.97,0.05258877]
[1723690217205,0.0460327,144.99,144.98,3.4482]
[1723690218800,0.0460327,144.99,144.97,36.60078877]
[1723690219107,0.0460327,144.99,144.97,3.50078877]
[1723690223911,0.0460327,144.99,144.98,3.4482]
[1723690225301,0.0460327,144.99,144.97,0.05258877]
[1723690227010,3.4482,144.98,144.97,0.05258877]
[1723690227207,1.3153,144.98,144.92,4.78]
[1723690227402,3.4495,144.93,144.89,3.4503]
[1723690228307,0.0450704,144.92,144.9,0.044197]
[1723690229511,0.0450704,144.92,144.9,3.494097]
[1723690229911,0.0450704,144.92,144.9,0.044197]
[1723690230713,4.78,144.99,144.91,33.1]
[1723690231317,3.4484,144.97,144.93,3.4492]
[1723690231519,1.2096,145.0,144.91,33.1]
[1723690231714,1.2096,145.0,144.94,33.1]
[1723690231914,0.04912832,144.97,144.94,33.14539475]
[1723690232116,0.04912832,144.97,144.95,3.4487]
[1723690232614,0.04912832,144.97,144.96,33.1]
[1723690232819,0.04912832,144.97,144.96,36.5486]
[1723690233016,1.2443,145.04,144.96,33.1]
[1723690233715,1.2443,145.04,144.98,33.1]
[1723690234115,0.04426908,145.02,145.0,0.04909644]
[1723690234521,0.04426908,145.02,145.0,3.49659644]
[1723690237732,0.04426908,145.02,145.0,0.04909644]
[1723690238425,0.04426908,145.02,145.0,3.49659644]
[1723690238622,0.04426908,145.02,145.0,0.04909644]
[1723690239234,0.04426908,145.02,145.0,3.49659644]
[1723690241328,0.04426908,145.02,145.01,3.4474]
[1723690241932,0.04426908,145.02,145.0,0.04909644]
[1723690242434,3.4474,145.01,145.0,0.04909644]
[1723690243332,3.49156908,145.02,145.0,0.04909644]
[1723690243634,0.04426908,145.02,145.0,0.04909644]
[1723690243934,3.4474,145.01,145.0,0.04909644]
[1723690245132,0.04426908,145.02,144.94,26.48]
[1723690245333,31.24,145.02,144.92,26.48]
[1723690245636,26.48,145.0,144.9,26.48]
[1723690245830,3.52224173,144.99,144.9,26.48]
[1723690246032,3.4488,144.96,144.92,3.4494]
[1723690246227,3.4958574,144.96,144.93,0.04677099]
[1723690248937,3.4958574,144.96,144.93,3.49607099]
[1723690249129,0.0470574,144.96,144.93,33.17677099]
[1723690249534,0.0470574,144.96,144.95,3.4489]
[1723690250337,0.0470574,144.96,144.95,36.5789]
[1723690251738,2.5019,145.03,144.97,3.4483]
[1723690252441,2.5019,145.03,144.99,3.4479]
[1723690252835,2.5019,145.03,144.97,33.13]
[1723690253038,0.05161284,145.02,145.0,0.04560303]
[1723690253837,3.4476,145.01,145.0,0.04560303]
[1723690258639,3.49891284,145.02,145.0,0.04560303]
[1723690259442,3.4474,145.01,145.0,0.04560303]
[1723690260542,0.05161284,145.02,144.92,37.89]
[1723690260841,2.5019,145.03,144.95,33.13]
[1723690261143,2.5019,145.03,144.95,36.62485169]
[1723690261345,2.5019,145.03,144.98,3.448]
[1723690261533,3.4474,145.01,144.98,3.448]
[1723690261738,3.4474,145.01,144.99,0.05051055]
[1723690262042,0.04452624,145.02,144.99,3.49841055]
[1723690263332,3.49182624,145.02,144.99,0.05051055]
[1723690263532,0.04452624,145.02,144.99,0.05051055]
[1723690263938,3.4477,145.0,144.99,0.05051055]
[1723690266344,3.4475,145.01,144.99,0.05051055]
[1723690266549,0.04452624,145.02,144.99,0.05051055]
[1723690267432,3.49172624,145.02,144.99,3.49831055]
[1723690267642,0.04452624,145.02,144.99,33.18051055]
[1723690267842,0.04452624,145.02,145.01,29.9174]
[1723690268039,6.0865,145.1,145.04,26.47]
[1723690268236,6.0865,145.1,145.06,26.47]
[1723690268634,6.0865,145.1,145.04,26.47]
[1723690268945,3.4466,145.05,145.01,3.4474]
[1723690269240,3.4466,145.05,145.0,26.47]
[1723690269447,3.4464,145.06,145.02,3.49311306]
[1723690269642,3.4464,145.06,145.02,29.96311306]
[1723690269834,0.04752628,145.04,145.02,29.96311306]
[1723690270041,0.04752628,145.04,145.02,26.51591306]
[1723690270239,1.3265,145.1,145.02,26.51591306]
[1723690270445,1.3265,145.1,145.05,26.47]
[1723690270849,3.4456,145.09,145.05,26.47]
[1723690271349,3.4456,145.09,145.05,29.9164]
[1723690271645,0.0463281,145.08,145.06,0.04768007]
[1723690271842,3.4921281,145.08,145.06,0.04768007]
[1723690272145,0.0463281,145.08,145.06,0.04768007]
[1723690272446,26.5163281,145.08,144.98,26.47]
[1723690272648,5.9995,145.07,144.99,3.4478]
[1723690272948,3.4472,145.03,144.99,3.4478]
[1723690273149,1.2966,145.06,144.98,26.47]
[1723690273448,0.050109,145.03,144.96,26.47]
[1723690273747,0.050109,145.03,145.0,29.9176]
[1723690273944,0.050109,145.03,145.0,3.4476]
[1723690274149,0.050109,145.03,144.99,36.5378]
[1723690274349,0.050109,145.03,144.99,3.4478]
[1723690274946,3.497209,145.03,144.99,3.4478]
[1723690275151,0.050109,145.03,144.99,33.09]
[1723690275649,0.050109,145.03,145.01,3.4473]
[1723690276050,0.050109,145.03,145.0,3.4476]
[1723690276250,0.050109,145.03,144.99,33.09]
[1723690276554,3.497109,145.03,144.99,33.09]
[1723690276754,0.050109,145.03,144.98,0.05102362]
[1723690277148,3.4479,144.99,144.98,0.05102362]
[1723690277753,0.05066139,145.0,144.98,0.05102362]
[1723690278356,3.4479,144.99,144.98,0.05102362]
[1723690278557,0.05066139,145.0,144.93,33.09]
[1723690278855,3.4485,144.97,144.93,36.5392]
[1723690279351,34.3591,144.99,144.89,33.09]
[1723690279760,0.04596555,144.95,144.93,0.05207818]
[1723690280453,0.04596555,144.95,144.93,33.14207818]
[1723690280955,0.04596555,144.95,144.94,3.4491]
[1723690285263,0.04596555,144.95,144.94,20.2734168]
[1723690285764,0.04596555,144.95,144.94,3.4491]
[1723690286162,0.04596555,144.95,144.94,20.28071987]
[1723690286361,0.04596555,144.95,144.94,20.28022983]
[1723690286560,1.2306,145.01,144.94,16.83112983]
[1723690286868,4.6807,145.02,144.96,33.09]
[1723690287060,1.2334,145.02,144.96,33.09]
[1723690287255,1.2334,145.02,144.97,3.4483]
[1723690287461,3.4475,145.01,144.97,3.4483]
[1723690287766,0.04835394,145.0,144.98,0.04748806]
[1723690289167,3.4479,144.99,144.92,33.09]
[1723690289357,4.76,144.98,144.88,33.09]
[1723690289563,33.09,144.97,144.89,16.84864134]
[1723690289764,33.09,144.97,144.88,33.09]
[1723690290470,0.05212729,144.94,144.91,0.04822503]
[1723690290763,3.50132729,144.94,144.91,0.04822503]
[1723690291265,3.4495,144.93,144.91,0.04822503]
[1723690291969,3.4496,144.92,144.91,0.04822503]
[1723690295060,8.5253,144.93,144.84,33.09]
[1723690295367,41.6153,144.93,144.84,3.4514]
[1723690295766,3.4507,144.88,144.84,3.4514]
[1723690296166,0.04917829,144.87,144.85,0.04481957]
[1723690297369,0.04917829,144.87,144.85,3.49601957]
[1723690297959,0.04917829,144.87,144.86,3.451]
[1723690299067,8.5253,144.93,144.88,36.5403]
[1723690299868,11.9748,144.93,144.88,36.5403]
[1723690300269,0.05279068,144.92,144.89,0.05041196]
[1723690300666,0.05279068,144.92,144.89,3.50071196]
[1723690301269,0.05279068,144.92,144.9,3.45]
[1723690301469,0.05279068,144.92,144.9,33.09]
[1723690302171,0.05279068,144.92,144.9,36.5399]
[1723690302571,0.05279068,144.92,144.9,33.09]
[1723690303773,0.05279068,144.92,144.91,3.4498]
[1723690305974,226.0,145.0,144.9,33.09]
[1723690305975,230.76,145.0,144.9,33.09]
[1723690306170,230.76,145.0,144.92,33.09]
[1723690306171,4.76,145.0,144.92,33.09]
[1723690306375,4.76,145.0,144.91,33.09]
[1723690306977,0.04797789,144.97,144.94,0.04663321]
[1723690307479,3.4488,144.96,144.94,0.04663321]
[1723690307977,3.49657789,144.97,144.94,0.04663321]
[1723690308374,0.04797789,144.97,144.94,0.04663321]
[1723690308780,0.04797789,144.97,144.95,33.09]
[1723690309579,0.04797789,144.97,144.95,36.5387]
[1723690311280,0.04797789,144.97,144.95,33.09]
[1723690311489,0.04797789,144.97,144.96,3.4486]
[1723690311782,2.5716,145.03,144.96,33.09]
[1723690311977,2.5716,145.03,144.99,33.09]
[1723690312885,0.05225841,145.02,144.99,33.09]
[1723690313176,0.05225841,145.02,145.0,0.04772463]
[1723690314188,0.05225841,145.02,145.0,3.49542463]
[1723690314883,0.05225841,145.02,145.01,3.4475]
[1723690315081,0.05225841,145.02,145.0,0.04772463]
[1723690317193,0.05225841,145.02,145.0,3.49542463]
[1723690320395,0.05225841,145.02,145.01,3.4475]
[1723690324602,6.0266,145.09,145.05,26.47]
[1723690324802,9.4723,145.09,145.05,26.47]
[1723690325002,3.4457,145.09,145.05,26.47]
[1723690325399,3.4457,145.09,145.05,29.9164]
[1723690325604,3.8889,145.11,145.06,0.04552855]
[1723690325605,3.49855595,145.08,145.06,0.04552855]
[1723690325901,0.05265595,145.08,145.06,0.04552855]
[1723690326105,3.446,145.07,145.06,0.04552855]
[1723690326598,26.52265595,145.08,144.99,26.47]
[1723690326800,31.23,145.08,144.99,26.47]
[1723690327101,31.23,145.08,144.99,29.9177]
[1723690327300,3.4471,145.03,144.99,26.47]
[1723690327497,31.23,145.08,144.99,26.47]
[1723690327698,0.05062839,145.02,145.01,3.4473]
[1723690327893,31.23,145.08,145.0,0.04886961]
[1723690328099,0.04638283,145.03,144.99,26.47]
[1723690328307,3.49348283,145.03,145.0,3.4953232]
[1723690328502,0.04638283,145.03,145.0,0.0477232]
[1723690328701,0.04638283,145.03,144.99,26.47]
[1723690328702,3.448,144.99,144.88,10.36446535]
[1723690328902,2.6177,145.02,144.95,26.47]
[1723690329200,2.6177,145.02,144.97,26.47]
[1723690329503,3.4479,145.0,144.97,26.47]
[1723690329999,3.49173544,145.0,144.97,26.52035473]
[1723690330203,0.04383544,145.0,144.97,0.05035473]
[1723690331506,0.04383544,145.0,144.97,26.52035473]
[1723690331702,0.04383544,145.0,144.99,26.47]
[1723690331898,0.04383544,145.0,144.99,33.09]
[1723690332095,2.5325,145.07,144.99,33.09]
[1723690332310,2.5325,145.07,145.03,33.09]
[1723690332311,1.2509,145.07,145.03,33.09]
[1723690332702,3.4464,145.06,145.03,36.5368]
[1723690333299,3.49043134,145.06,145.03,36.58172854]
[1723690337011,0.04403134,145.06,145.04,3.4465]
[1723690337204,0.04403134,145.06,145.05,33.09]
[1723690338813,0.04403134,145.06,145.05,36.5365]
[1723690339015,0.04403134,145.06,145.05,33.09]
[1723690342320,0.04403134,145.06,145.05,36.5365]
[1723690343417,0.04403134,145.06,145.05,33.09]
[1723690343617,0.04403134,145.06,145.04,3.4466]
[1723690344322,0.04403134,145.06,145.03,36.58172854]
[1723690344913,0.04403134,145.06,145.03,33.13492854]
[1723690345222,0.04403134,145.06,145.03,0.04492854]
[1723690345817,4.78403134,145.06,144.97,33.09]
[1723690346015,3.4473,145.02,144.99,3.4479]
[1723690346519,3.41125724,145.03,144.97,33.09]
[1723690346719,2.528,145.05,144.97,33.09]
[1723690346924,2.528,145.05,144.98,3.4481]
[1723690347222,0.04404253,145.02,145.0,0.0475335]
[1723690348923,3.4474,145.01,145.0,0.0475335]
[1723690349623,8.1874,145.01,145.0,0.0475335]
[1723690355824,26.49,145.0,144.91,26.49]
[1723690356225,3.4491,144.95,144.91,29.9398]
[1723690356421,2.5464,144.99,144.91,26.49]
[1723690356621,26.49,144.98,144.89,29.9402]
[1723690356930,26.49,144.96,144.87,26.49]
[1723690357227,8.20830791,144.95,144.93,0.04787196]
[1723690357419,3.4491,144.94,144.93,0.04787196]
[1723690357624,8.20830791,144.95,144.89,26.49]
[1723690357820,8.16221986,144.95,144.92,0.04951255]
[1723690358021,3.50176764,144.93,144.92,0.04951255]
[1723690360534,3.4504,144.89,144.86,26.49]
[1723690360829,1.2647,144.92,144.86,26.49]
[1723690361026,3.4504,144.89,144.86,26.49]
[1723690361622,3.4504,144.89,144.86,26.54060073]
[1723690361822,3.49837341,144.89,144.86,0.05060073]
[1723690365934,3.4505,144.88,144.86,0.05060073]
[1723690366834,3.49837341,144.89,144.86,0.05060073]
[1723690367038,0.04797341,144.89,144.87,3.4508]
[1723690367331,0.04797341,144.89,144.87,36.5708]
[1723690368136,0.04797341,144.89,144.87,33.12]
[1723690370332,3.49827341,144.89,144.87,33.12]
[1723690372333,0.04797341,144.89,144.87,36.5707]
[1723690372734,3.49837341,144.89,144.87,33.12]
[1723690372935,0.04797341,144.89,144.86,0.05060073]
[1723690376632,3.4507,144.88,144.86,0.05060073]
[1723690377736,0.04797341,144.89,144.86,0.05060073]
[1723690377937,0.04797341,144.89,144.88,33.12]
[1723690379945,0.04797341,144.89,144.87,36.5706]
[1723690380438,0.04797341,144.89,144.86,0.05060073]
[1723690380936,3.4508,144.87,144.86,0.05060073]
[1723690383246,3.4506,144.88,144.86,0.05060073]
[1723690383445,4.78797341,144.89,144.86,0.05060073]
[1723690383647,8.23837341,144.89,144.86,0.05060073]
[1723690383840,3.49837341,144.89,144.87,26.5]
[1723690384041,0.04797341,144.89,144.87,26.5]
[1723690384242,3.49837341,144.89,144.87,26.5]
[1723690385646,0.04797341,144.89,144.87,26.5]
[1723690385846,4.74,144.95,144.88,26.5]
[1723690386049,4.74,144.95,144.91,26.5]
[1723690386253,4.74,144.95,144.89,26.5]
[1723690386441,4.74,144.95,144.87,26.5]
[1723690386645,26.5,144.94,144.85,31.24]
[1723690386842,26.5,144.92,144.83,26.5]
[1723690387050,0.05009768,144.91,144.88,0.04747418]
[1723690387251,3.4503,144.89,144.88,0.04747418]
[1723690394054,3.4516,144.84,144.81,29.9521]
[1723690394361,3.4516,144.84,144.81,3.4521]
[1723690394746,1.2443,144.89,144.79,3.4526]
[1723690394747,3.452,144.82,144.79,3.4526]
[1723690395158,3.49711983,144.82,144.79,3.4526]
[1723690395356,3.49711983,144.82,144.79,3.49998729]
[1723690395558,3.4523,144.81,144.79,0.04738729]
[1723690396054,0.04511983,144.82,144.79,0.04738729]
[1723690396254,3.49721983,144.82,144.79,3.50008729]
[1723690397957,3.4522,144.81,144.79,0.04738729]
[1723690398860,3.4522,144.81,144.79,3.50008729]
[1723690400964,0.04511983,144.82,144.79,26.54738729]
[1723690402357,0.04511983,144.82,144.8,3.4522]
[1723690402563,0.04511983,144.82,144.79,26.54738729]
[1723690402866,0.04511983,144.82,144.79,0.04738729]
[1723690403064,3.4523,144.81,144.79,0.04738729]
[1723690403362,3.4523,144.81,144.79,3.50008729]
[1723690403661,3.4523,144.81,144.79,0.04738729]
[1723690406166,3.4523,144.81,144.79,3.50008729]
[1723690406668,3.4523,144.81,144.79,0.04738729]
[1723690410068,3.4523,144.81,144.79,3.50008729]
[1723690410367,3.49721983,144.82,144.79,3.50008729]
[1723690411769,3.4522,144.81,144.79,3.50008729]
[1723690414573,3.4522,144.81,144.79,0.04738729]
[1723690415575,3.4524,144.8,144.79,0.04738729]
[1723690415971,15.36,144.8,144.72,3.4543]
[1723690416173,10.62,144.77,144.72,3.4543]
[1723690416674,3.4538,144.75,144.72,3.4543]
[1723690417178,3.454,144.74,144.72,0.05224826]
[1723690417674,3.4541,144.73,144.72,0.05224826]
[1723690417876,8.1941,144.73,144.72,0.05224826]
[1723690419074,4.74,144.73,144.72,0.05224826]
[1723690420673,8.1941,144.73,144.72,0.05224826]
[1723690420976,8.1941,144.73,144.65,26.56]
[1723690420977,4.74,144.73,144.65,26.56]
[1723690421177,3.4547,144.71,144.67,3.4555]
[1723690421481,3.4547,144.71,144.65,26.56]
[1723690421870,3.4548,144.7,144.67,3.4554]
[1723690422072,0.04630071,144.69,144.67,3.4998547]
[1723690423378,0.04630071,144.69,144.67,0.0444547]
[1723690423781,0.04630071,144.69,144.67,3.4997547]
[1723690424793,0.04630071,144.69,144.68,3.4553]
[1723690425178,1.3346,144.77,144.67,26.6044547]
[1723690425377,1.3346,144.77,144.71,26.56]
[1723690425577,4.74,144.76,144.69,26.56]
[1723690425776,4.74,144.76,144.69,3.455]
[1723690426077,4.74,144.76,144.67,26.56]
[1723690426283,4.74,144.76,144.7,3.4546]
[1723690426482,1.3346,144.77,144.72,26.56]
[1723690426687,0.0466433,144.73,144.72,26.56]
[1723690426873,0.0466433,144.73,144.72,3.4544]
[1723690427081,4.74,144.76,144.65,7.1630557]
[1723690427283,1.3346,144.77,144.72,26.56]
[1723690427585,4.788,144.77,144.73,3.4541]
[1723690427879,4.788,144.77,144.72,26.56]
[1723690427880,1.3346,144.77,144.72,26.56]
[1723690428182,0.0522012,144.76,144.74,3.4537]
[1723690430083,0.0522012,144.76,144.75,3.4536]
[1723690432383,0.0522012,144.76,144.74,26.56]
[1723690434888,0.0522012,144.76,144.74,3.4538]
[1723690435082,0.0522012,144.76,144.73,0.04751301]
[1723690435285,0.0522012,144.76,144.73,3.50161301]
[1723690436087,0.0522012,144.76,144.73,0.04751301]
[1723690436585,0.0522012,144.76,144.74,3.4539]
[1723690436788,0.0522012,144.76,144.73,0.04751301]
[1723690436986,0.0522012,144.76,144.74,26.56]
[1723690437189,0.0522012,144.76,144.75,3.4536]
[1723690437777,0.0522012,144.76,144.74,3.4538]
[1723690438283,0.0522012,144.76,144.73,0.04751301]
[1723690439091,3.5058012,144.76,144.73,0.04751301]
[1723690439991,0.0522012,144.76,144.73,0.04751301]
[1723690440490,0.0522012,144.76,144.74,3.4538]
[1723690441787,0.0522012,144.76,144.75,3.4536]
[1723690454801,1.2637,144.82,144.8,3.4524]
[1723690455000,1.2637,144.82,144.73,0.04751301]
[1723690455001,1.2637,144.82,144.78,26.56]
[1723690456000,0.04816593,144.81,144.79,0.04621779]
[1723690456503,3.50046593,144.81,144.79,0.04621779]
[1723690460313,0.04816593,144.81,144.79,0.04621779]
[1723690461508,0.04816593,144.81,144.8,26.56]
[1723690461707,1.3047,144.86,144.8,26.56]
[1723690462011,1.3047,144.86,144.82,26.56]
[1723690462406,4.7559,144.86,144.83,3.4516]
[1723690463013,4.80597488,144.86,144.83,3.49959293]
[1723690466015,4.80597488,144.86,144.83,14.09959293]
[1723690468012,3.4515,144.84,144.83,0.04799293]
[1723690468315,14.0515,144.84,144.83,0.04799293]
[1723690469518,3.4515,144.84,144.83,0.04799293]
[1723690470209,14.0515,144.84,144.83,0.04799293]
[1723690471619,3.4515,144.84,144.83,0.04799293]
[1723690484726,14.0515,144.84,144.83,0.04799293]
[1723690486628,3.4515,144.84,144.83,0.04799293]
[1723690487126,8.1715,144.84,144.83,0.04799293]
[1723690499034,15.32,144.84,144.76,33.36019842]
[1723690499236,10.6,144.81,144.71,4.72]
[1723690499536,14.08331763,144.81,144.74,10.6]
[1723690499737,14.08331763,144.81,144.75,16.86152571]
[1723690499926,14.08331763,144.81,144.74,10.6]
[1723690500130,3.4531,144.78,144.76,0.05116894]
[1723690500330,0.04999807,144.79,144.76,0.05116894]
[1723690500734,4.76999807,144.79,144.76,0.05116894]